bitfinex/quotes_SOLUSD_20260102
["timestamp","ask_amount","ask_price","bid_price","bid_amount"]
[1767351180216,0.68735711,129.17,129.13,3.81488732]
[1767351180514,3.7966701,129.17,129.13,3.81488732]
[1767351180719,0.68735711,129.16,129.13,3.81488732]
[1767351181629,0.68735711,129.16,129.13,3.10931299]
[1767351184013,0.68735711,129.16,129.12,8.45028627]
[1767351184210,0.68735711,129.16,129.13,3.10931299]
[1767351185005,0.68735711,129.16,129.12,3.81488732]
[1767351186223,0.68735711,129.16,129.12,0.70557433]
[1767351186432,0.68735711,129.16,129.12,3.81488732]
[1767351188424,3.10931299,129.16,129.12,3.81488732]
[1767351188640,0.68735711,129.15,129.12,3.81488732]
[1767351189113,0.68735711,129.15,129.13,3.10931299]
[1767351189624,0.68735711,129.16,129.13,3.81488732]
[1767351189832,0.68735711,129.16,129.14,3.81488732]
[1767351193627,10.85045636,129.18,129.14,3.81488732]
[1767351193930,0.68735711,129.17,129.14,3.81488732]
[1767351196741,0.68735711,129.17,129.14,2.69697576]
[1767351199040,0.68735711,129.17,129.13,2.69697576]
[1767351199637,1.99140143,129.17,129.13,1.99140143]
[1767351199844,0.68735711,129.16,129.13,1.99140143]
[1767351200732,0.68735711,129.16,129.12,10.44140445]
[1767351201133,0.68735711,129.16,129.13,0.70557433]
[1767351201750,0.68735711,129.15,129.13,0.70557433]
[1767351202044,0.68735711,129.15,129.12,10.44140445]
[1767351202849,0.68735711,129.15,129.13,0.70557433]
[1767351203146,0.68735711,129.15,129.13,2.69697576]
[1767351204737,7.74114337,129.18,129.13,2.69697576]
[1767351204946,0.68735711,129.16,129.13,2.69697576]
[1767351205845,0.68735711,129.17,129.14,2.69697576]
[1767351206943,0.68735711,129.17,129.14,0.70557433]
[1767351207149,0.69729038,129.16,129.12,10.40756895]
[1767351207646,0.69729038,129.16,129.12,9.73581486]
[1767351207837,0.69729038,129.16,129.13,0.67175409]
[1767351208243,0.69729038,129.16,129.13,2.66315552]
[1767351209933,0.69729038,129.16,129.14,1.99140143]
[1767351215465,0.69729038,129.16,129.13,8.41587612]
[1767351215868,0.69729038,129.16,129.14,1.99140143]
[1767351218341,0.69729038,129.16,129.13,0.67175409]
[1767351218539,0.69729038,129.16,129.14,1.99140143]
[1767351218965,0.69729038,129.16,129.13,0.67175409]
[1767351219172,0.69729038,129.16,129.14,1.99140143]
[1767351220739,0.69729038,129.16,129.13,2.66315552]
[1767351221364,0.69729038,129.16,129.13,0.67175409]
[1767351221563,0.69729038,129.16,129.13,2.66315552]
[1767351221859,0.69729038,129.16,129.13,0.67175409]
[1767351222057,0.69729038,129.16,129.14,1.99140143]
[1767351222255,0.69729038,129.16,129.13,0.67175409]
[1767351222468,0.69729038,129.16,129.13,2.66315552]
[1767351224366,0.69729038,129.16,129.13,0.67175409]
[1767351224544,0.69729038,129.16,129.13,2.66315552]
[1767351225567,0.69729038,129.14,129.1,1.99140143]
[1767351225740,0.69729038,129.14,129.11,1.99140143]
[1767351225940,0.69729038,129.14,129.11,2.66315552]
[1767351227875,0.69729038,129.16,129.13,2.66315552]
[1767351228061,0.69729038,129.16,129.14,1.99140143]
[1767351228545,0.69729038,129.16,129.13,2.66315552]
[1767351229073,0.69729038,129.16,129.13,0.67175409]
[1767351229371,0.69729038,129.16,129.13,2.66315552]
[1767351230178,0.69729038,129.16,129.13,0.67175409]
[1767351234574,0.70841041,129.15,129.13,0.67175409]
[1767351235967,0.70841041,129.15,129.12,0.69569994]
[1767351236985,0.68240623,129.13,129.1,0.69569994]
[1767351237485,0.68240623,129.13,129.1,8.44156198]
[1767351238086,0.68240623,129.13,129.1,7.74586204]
[1767351238283,0.68240623,129.13,129.11,0.69569994]
[1767351239885,0.68240623,129.13,129.1,0.69569994]
[1767351240075,0.68240623,129.13,129.1,2.68710137]
[1767351241165,14.82240623,129.15,129.11,0.69569994]
[1767351241392,0.68240623,129.14,129.11,2.68710137]
[1767351241687,0.68240623,129.14,129.12,0.69569994]
[1767351242373,14.14,129.15,129.13,2.68710137]
[1767351242580,14.82240623,129.15,129.13,0.69569994]
[1767351242774,14.82240623,129.15,129.12,2.68710137]
[1767351243470,14.14,129.15,129.12,1.99140143]
[1767351243672,0.68240623,129.14,129.11,10.43237144]
[1767351244389,0.68240623,129.14,129.1,72.03717439]
[1767351244573,0.68240623,129.14,129.1,72.73287433]
[1767351245088,0.68240623,129.14,129.1,0.69569994]
[1767351245089,0.68240623,129.13,129.1,0.69569994]
[1767351245289,0.68240623,129.14,129.11,2.68710137]
[1767351245471,14.14,129.15,129.12,2.68710137]
[1767351245877,14.82240623,129.15,129.12,2.68710137]
[1767351247596,0.68240623,129.14,129.11,2.68710137]
[1767351248303,0.68240623,129.14,129.1,1.99140143]
[1767351248495,0.68240623,129.14,129.1,2.68710137]
[1767351249200,0.68240623,129.14,129.1,10.43297394]
[1767351252211,0.68240623,129.15,129.1,7.74587257]
[1767351252406,0.68240623,129.15,129.12,1.99140143]
[1767351254007,0.68240623,129.15,129.11,2.68710137]
[1767351254588,0.68240623,129.15,129.11,0.69569994]
[1767351255087,0.68240623,129.14,129.11,2.68710137]
[1767351256624,0.68240623,129.14,129.11,0.69569994]
[1767351256911,0.68240623,129.14,129.09,10.85957676]
[1767351256912,0.68240623,129.13,129.09,10.85957676]
[1767351257093,0.68240623,129.12,129.09,11.5552767]
[1767351257914,0.68240623,129.12,129.09,8.44212507]
[1767351258115,3.11315163,129.12,129.08,79.29267611]
[1767351258289,3.11315163,129.12,129.08,0.89569994]
[1767351258290,0.68240623,129.11,129.08,0.89569994]
[1767351258491,0.68240623,129.11,129.08,4.00885157]
[1767351260006,0.68240623,129.11,129.08,0.89569994]
[1767351260204,3.79555786,129.1,129.08,0.2]
[1767351260520,0.68240623,129.08,129.05,0.2]
[1767351260925,0.68240623,129.09,129.06,3.11315163]
[1767351261230,0.68240623,129.09,129.07,3.11315163]
[1767351261399,0.68240623,129.09,129.07,3.80885157]
[1767351262022,0.68240623,129.1,129.07,3.80885157]
[1767351263120,3.11315163,129.1,129.06,0.69569994]
[1767351263317,0.68240623,129.09,129.06,3.80885157]
[1767351265010,0.68240623,129.1,129.07,0.69569994]
[1767351265211,0.68240623,129.1,129.07,3.80885157]
[1767351265406,3.79555786,129.1,129.07,0.69569994]
[1767351268309,0.67175498,129.09,129.06,0.69526258]
[1767351268515,0.67175498,129.08,129.05,4.00841421]
[1767351268718,0.67175498,129.08,129.05,0.89526258]
[1767351269016,0.67175498,129.08,129.05,4.00841421]
[1767351274737,24.99912602,129.1,129.06,3.80841421]
[1767351274936,22.55772937,129.1,129.06,3.80841421]
[1767351275336,0.67175498,129.09,129.06,0.69526258]
[1767351275527,0.67175498,129.09,129.06,3.80841421]
[1767351280346,0.67175498,129.09,129.05,73.36197175]
[1767351280347,0.67175498,129.08,129.05,73.36197175]
[1767351281236,0.67175498,129.08,129.05,3.31315163]
[1767351281641,0.67175498,129.06,129.05,0.2]
[1767351283455,7.74685504,129.09,129.05,4.00841421]
[1767351283647,14.81175498,129.08,129.05,0.89526258]
[1767351283850,14.14,129.08,129.05,0.89526258]
[1767351284163,0.67175498,129.07,129.05,0.2]
[1767351286132,0.67175498,129.07,129.05,3.31315163]
[1767351286333,0.64175498,129.07,129.05,3.31315163]
[1767351286550,0.64175498,129.07,129.05,0.2]
[1767351286753,0.64175498,129.07,129.05,3.31315163]
[1767351287344,0.64175498,129.07,129.05,0.2]
[1767351287650,0.64175498,129.07,129.05,3.31315163]
[1767351288552,0.64175498,129.07,129.05,0.2]
[1767351290062,0.67175498,129.06,129.05,0.2]
[1767351292752,0.67175498,129.05,129.01,0.2]
[1767351293056,13.97463736,129.06,129.01,0.2]
[1767351293057,0.67175498,129.02,129.01,0.2]
[1767351293258,3.78490661,129.05,129.02,0.69526258]
[1767351293443,14.81175498,129.04,129.02,0.69526258]
[1767351293635,14.81175498,129.04,129.01,4.00841421]
[1767351295045,14.81175498,129.04,129.01,0.89526258]
[1767351295250,22.56129232,129.04,129.01,0.89526258]
[1767351296548,25.67444395,129.04,129.01,0.89526258]
[1767351299967,25.00268897,129.04,129.01,0.2]
[1767351300264,0.67129451,129.03,129.01,0.2]
[1767351300865,17.92444614,129.04,129.01,0.90033668]
[1767351301079,14.14,129.04,129.02,0.70033668]
[1767351301368,17.92444614,129.06,129.03,0.70033668]
[1767351301562,3.78444614,129.06,129.03,0.70033668]
[1767351301737,17.92444614,129.06,129.03,0.70033668]
[1767351303040,14.81129451,129.06,129.03,0.70033668]
[1767351305576,22.55967616,129.06,129.03,0.70033668]
[1767351305962,25.67282779,129.06,129.03,0.70033668]
[1767351307280,0.67129451,129.05,129.02,3.81348831]
[1767351309082,0.67129451,129.05,129.02,0.70033668]
[1767351309294,0.67129451,129.05,129.02,3.81348831]
[1767351310880,0.67129451,129.05,129.02,0.70033668]
[1767351311271,14.81129451,129.05,129.02,0.70033668]
[1767351312978,14.81129451,129.05,129.02,3.81348831]
[1767351313285,14.14,129.05,129.03,0.70033668]
[1767351313662,14.81129451,129.05,129.03,0.70033668]
[1767351315368,0.67129451,129.05,129.03,0.70033668]
[1767351315576,14.81129451,129.05,129.03,0.70033668]
[1767351318483,14.81129451,129.05,129.02,0.70033668]
[1767351318692,14.81129451,129.05,129.02,2.69536285]
[1767351319293,0.67129451,129.05,129.02,2.69536285]
[1767351319464,14.14,129.05,129.03,2.69536285]
[1767351319870,14.81129451,129.05,129.03,2.69536285]
[1767351321574,14.81129451,129.05,129.03,0.70033668]
[1767351328408,0.67129451,129.05,129.03,0.70033668]
[1767351328578,14.81129451,129.05,129.03,0.70033668]
[1767351329998,0.67129451,129.05,129.03,0.70033668]
[1767351330191,14.81129451,129.05,129.03,0.70033668]
[1767351337304,14.14,129.06,129.05,0.71300819]
[1767351337513,19.31923875,129.06,129.05,2.70803436]
[1767351338315,19.31923875,129.06,129.05,0.71300819]
[1767351338492,19.05567275,129.06,129.05,0.71300819]
[1767351338822,19.31923875,129.06,129.04,2.70803436]
[1767351339009,14.14,129.06,129.04,2.70803436]
[1767351340709,21.36389921,129.08,129.05,2.70803436]
[1767351340710,14.79344489,129.08,129.05,2.70803436]
[1767351340924,5.18301338,129.07,129.06,0.71300819]
[1767351341084,14.14,129.08,129.06,0.71300819]
[1767351341292,14.79344489,129.08,129.06,0.71300819]
[1767351343012,14.79344489,129.08,129.05,0.71300819]
[1767351343212,14.79344489,129.08,129.05,2.70803436]
[1767351353219,0.65344489,129.07,129.04,2.70803436]
[1767351353427,0.65344489,129.07,129.05,0.71300819]
[1767351354521,0.65344489,129.07,129.04,2.70803436]
[1767351355302,0.65344489,129.07,129.05,0.71300819]
[1767351356218,14.79344489,129.07,129.05,0.71300819]
[1767351358525,14.79344489,129.07,129.04,10.4417932]
[1767351364025,14.79344489,129.07,129.04,8.44676703]
[1767351364219,14.79344489,129.07,129.04,10.4417932]
[1767351366826,14.79344489,129.07,129.05,0.69731086]
[1767351367931,14.79344489,129.07,129.05,8.44616772]
[1767351369330,0.67697937,129.12,129.07,0.69731086]
[1767351369627,19.32773145,129.11,129.09,0.69731086]
[1767351369930,0.67697937,129.11,129.09,0.69731086]
[1767351370222,14.81697937,129.11,129.09,0.69731086]
[1767351372026,14.81697937,129.11,129.08,0.69731086]
[1767351375702,14.81697937,129.11,129.08,2.69233703]
[1767351376126,14.81697937,129.11,129.08,0.69731086]
[1767351381538,2.01697937,129.11,129.08,0.69731086]
[1767351383138,10.85947789,129.12,129.08,0.69731086]
[1767351383530,11.46603789,129.12,129.08,0.69731086]
[1767351383731,10.85947789,129.12,129.08,0.69731086]
[1767351384030,0.60656,129.11,129.08,0.69731086]
[1767351386248,3.72127648,129.11,129.08,0.69731086]
[1767351388129,0.60656,129.11,129.08,0.69731086]
[1767351392832,3.72127648,129.11,129.08,0.69731086]
[1767351393839,0.60656,129.11,129.08,0.69731086]
[1767351400741,3.72127648,129.11,129.08,0.69731086]
[1767351401163,0.60656,129.11,129.08,0.69731086]
[1767351401335,3.72127648,129.11,129.08,0.69731086]
[1767351401859,3.11471648,129.09,129.08,0.69731086]
[1767351408265,3.11471648,129.09,129.07,0.66668515]
[1767351409661,3.11471648,129.09,129.05,76.44]
[1767351409662,3.11471648,129.08,129.05,62.3]
[1767351409862,3.11471648,129.06,129.03,0.66668515]
[1767351410070,3.11471648,129.05,129.03,0.66668515]
[1767351412851,3.11471648,129.05,129.03,7.7501321]
[1767351413064,3.11471648,129.05,129.04,0.66668515]
[1767351413370,3.11471648,129.05,129.03,7.7501321]
[1767351415346,3.11471648,129.05,129.04,0.66668515]
[1767351417075,3.11471648,129.06,129.04,0.66668515]
[1767351417259,3.11471648,129.05,129.03,0.7152241]
[1767351417460,0.71661137,129.06,129.03,0.7152241]
[1767351417657,3.11471648,129.05,129.03,0.7152241]
[1767351419381,3.11471648,129.05,129.04,0.7152241]
[1767351420056,3.83132785,129.06,129.04,0.7152241]
[1767351421390,0.71661137,129.06,129.04,0.7152241]
[1767351421576,3.83132785,129.06,129.04,0.7152241]
[1767351425580,3.11471648,129.06,129.04,0.7152241]
[1767351426082,0.71661137,129.07,129.04,0.7152241]
[1767351426285,3.83132785,129.06,129.04,0.7152241]
[1767351429387,0.71661137,129.06,129.04,0.7152241]
[1767351430481,3.11471648,129.07,129.04,7.74944271]
[1767351430673,3.83132785,129.08,129.05,0.7152241]
[1767351431285,0.71661137,129.07,129.05,0.7152241]
[1767351432370,3.11471648,129.08,129.05,0.7152241]
[1767351432578,0.71661137,129.08,129.05,8.46411665]
[1767351434478,3.83132785,129.08,129.05,8.46411665]
[1767351434672,3.83132785,129.06,129.03,0.7152241]
[1767351435692,3.83132785,129.06,129.03,7.74980722]
[1767351435878,3.83132785,129.06,129.04,0.7152241]
[1767351436189,0.71661137,129.06,129.04,0.7152241]
[1767351436406,0.71661137,129.09,129.05,0.7152241]
[1767351436687,0.71661137,129.07,129.05,0.7152241]
[1767351436867,0.71661137,129.07,129.04,8.46472373]
[1767351437581,0.71661137,129.07,129.04,11.57944021]
[1767351438793,0.71661137,129.07,129.05,0.7152241]
[1767351439275,0.71661137,129.07,129.04,11.57944021]
[1767351439476,0.71661137,129.07,129.05,0.7152241]
[1767351439779,0.71661137,129.07,129.04,10.86421611]
[1767351439978,0.71661137,129.07,129.04,11.57944021]
[1767351440694,0.71661137,129.07,129.05,0.7152241]
[1767351442797,0.71661137,129.07,129.04,7.74949963]
[1767351442984,0.71661137,129.07,129.04,8.46472373]
[1767351443799,0.71661137,129.07,129.04,10.4591204]
[1767351445508,0.71661137,129.07,129.04,8.46472373]
[1767351445680,0.71661137,129.07,129.04,10.4591204]
[1767351446603,2.65405758,129.09,129.05,0.6763727]
[1767351446794,0.65966091,129.09,129.06,2.67076937]
[1767351447412,0.65966091,129.09,129.06,0.6763727]
[1767351450793,2.65405758,129.09,129.06,0.6763727]
[1767351452384,0.65966091,129.07,129.04,84.86572357]
[1767351452585,0.65966091,129.07,129.05,0.6763727]
[1767351453211,2.65405758,129.08,129.05,0.6763727]
[1767351456509,0.65966091,129.08,129.05,0.6763727]
[1767351456696,2.65405758,129.08,129.05,0.6763727]
[1767351460811,2.65405758,129.07,129.04,14.8163727]
[1767351461192,2.65405758,129.07,129.04,0.6763727]
[1767351463305,1.99439667,129.06,129.04,0.6763727]
[1767351466122,2.65405758,129.06,129.04,0.6763727]
[1767351467625,2.65405758,129.06,129.03,0.6763727]
[1767351467826,1.99439667,129.05,129.03,0.6763727]
[1767351469628,0.65966091,129.06,129.03,0.6763727]
[1767351469827,2.65405758,129.06,129.03,0.6763727]
[1767351476532,2.65405758,129.06,129.04,0.68562333]
[1767351476831,0.65966091,129.06,129.04,0.68562333]
[1767351477328,0.67553097,129.09,129.04,0.68562333]
[1767351477518,2.66992764,129.09,129.06,0.68562333]
[1767351477907,1.99439667,129.09,129.06,0.68562333]
[1767351478109,0.67553097,129.08,129.06,0.68562333]
[1767351479428,2.66992764,129.09,129.06,0.68562333]
[1767351481335,0.67553097,129.09,129.06,0.68562333]
[1767351481706,33.50285415,129.12,129.06,0.68562333]
[1767351481911,1.99439667,129.1,129.06,0.68562333]
[1767351483939,33.50285415,129.12,129.06,0.68562333]
[1767351483940,2.59211085,129.09,129.06,0.68562333]
[1767351484126,0.59771418,129.08,129.05,2.68002]
[1767351484321,2.59211085,129.07,129.04,0.68562333]
[1767351484630,0.59771418,129.06,129.03,62.3]
[1767351484938,0.59771418,129.06,129.04,0.68562333]
[1767351485135,2.59211085,129.06,129.04,0.68562333]
[1767351486445,2.59211085,129.05,129.02,0.68562333]
[1767351487223,1.99439667,129.04,129.02,0.68562333]
[1767351487542,2.59211085,129.04,129.02,0.68562333]
[1767351490644,0.59771418,129.04,129.02,0.68562333]
[1767351491227,2.59211085,129.04,129.01,0.88562333]
[1767351491945,0.59771418,129.04,129.01,0.88562333]
[1767351493455,2.59211085,129.03,129.01,0.2]
[1767351493634,0.59771418,129.03,129.01,0.2]
[1767351494540,0.59771418,129.03,129.01,0.88562333]
[1767351496652,0.59771418,129.03,129.01,0.2]
[1767351497748,0.39771418,129.01,129.0,0.1]
[1767351497951,2.39211085,129.01,129.0,0.1]
[1767351498536,2.36211085,129.01,129.0,0.1]
[1767351499733,2.36211085,129.01,128.99,0.2]
[1767351500750,2.06211085,129.0,128.98,0.2]
[1767351502458,3.18780728,129.0,128.98,0.2]
[1767351502846,3.1200931,129.0,128.98,0.2]
[1767351503170,3.18780728,128.99,128.98,0.13228582]
[1767351505666,3.1200931,128.99,128.97,0.2]
[1767351506050,3.1200931,128.99,128.96,0.2]
[1767351506051,3.1200931,128.98,128.96,0.2]
[1767351506646,3.1200931,128.97,128.96,0.2]
[1767351507865,10.87383428,128.97,128.94,0.2]
[1767351508163,3.1200931,128.96,128.94,0.2]
[1767351508356,3.1200931,128.98,128.95,0.72039661]
[1767351509645,10.87345077,128.98,128.95,0.72039661]
[1767351510537,7.75284585,128.99,128.95,0.72039661]
[1767351510739,3.1200931,128.98,128.95,0.72039661]
[1767351511671,3.1200931,128.97,128.95,0.72039661]
[1767351513274,3.1200931,128.96,128.94,0.2]
[1767351513487,3.1200931,128.95,128.94,0.2]
[1767351513766,36.65993806,129.0,128.94,0.2]
[1767351513767,19.38178955,128.99,128.94,0.2]
[1767351514073,3.1200931,128.95,128.94,0.2]
[1767351514444,3.1200931,128.95,128.92,0.2]
[1767351514675,3.1200931,128.94,128.92,0.92039661]
[1767351515057,3.1200931,128.93,128.91,0.92039661]
[1767351515868,7.75515356,128.95,128.91,0.2]
[1767351515869,3.1200931,128.92,128.91,0.2]
[1767351516350,3.1200931,128.92,128.9,0.72039661]
[1767351516555,27.14230321,128.95,128.9,0.72039661]
[1767351516883,3.1200931,128.92,128.9,0.72039661]
[1767351517056,27.14230321,128.95,128.9,0.72039661]
[1767351517255,3.1200931,128.92,128.9,0.72039661]
[1767351517656,22.5096095,128.94,128.88,0.72039661]
[1767351517878,3.1200931,128.93,128.9,0.72039661]
[1767351518381,7.75494377,128.95,128.9,0.72039661]
[1767351518382,3.1200931,128.94,128.9,0.72039661]
[1767351518553,3.1200931,128.93,128.9,0.72039661]
[1767351519669,7.75494377,128.95,128.9,0.72039661]
[1767351519867,3.1200931,128.93,128.9,0.72039661]
[1767351521076,3.1200931,128.92,128.9,0.72039661]
[1767351523884,3.1200931,128.91,128.9,0.72039661]
[1767351524080,3.1200931,128.91,128.88,0.72039661]
[1767351524280,3.1200931,128.9,128.88,0.72039661]
[1767351524479,8.44233239,128.93,128.88,0.72039661]
[1767351524677,3.1200931,128.91,128.88,0.72039661]
[1767351525590,3.1200931,128.9,128.88,0.72039661]
[1767351526964,0.68594707,128.91,128.88,0.72039661]
[1767351527160,3.1200931,128.9,128.88,0.72039661]
[1767351528168,0.68594707,128.91,128.88,0.72039661]
[1767351528382,3.1200931,128.9,128.88,0.72039661]
[1767351529683,3.1200931,128.89,128.88,0.72039661]
[1767351529870,3.80604017,128.89,128.87,14.16]
[1767351530266,3.1200931,128.89,128.85,3.89618933]
[1767351530472,3.80604017,128.88,128.85,0.72039661]
[1767351531581,0.68594707,128.88,128.85,0.72039661]
[1767351534503,3.80604017,128.88,128.85,0.72039661]
[1767351536388,0.72235571,128.91,128.85,0.72039661]
[1767351536581,3.1200931,128.88,128.85,0.72039661]
[1767351536982,3.1200931,128.89,128.86,0.6801995]
[1767351538101,3.84244881,128.89,128.86,0.6801995]
[1767351540198,0.72235571,128.91,128.87,0.6801995]
[1767351540406,3.1200931,128.9,128.87,0.6801995]
[1767351540792,3.1200931,128.91,128.87,0.6801995]
[1767351541101,3.1200931,128.92,128.88,0.6801995]
[1767351542581,3.1200931,128.92,128.88,3.1200931]
[1767351542782,3.1200931,128.92,128.89,0.6801995]
[1767351545485,0.72235571,128.91,128.89,0.6801995]
[1767351545690,3.84244881,128.91,128.89,0.6801995]
[1767351546092,0.72235571,128.91,128.89,0.6801995]
[1767351546404,3.84244881,128.92,128.89,0.6801995]
[1767351546699,0.72235571,128.92,128.89,0.6801995]
[1767351546881,3.84244881,128.92,128.89,0.6801995]
[1767351548309,0.72235571,128.92,128.89,0.6801995]
[1767351548608,3.84244881,128.92,128.89,0.6801995]
[1767351549210,0.72235571,128.92,128.89,0.6801995]
[1767351549412,3.84244881,128.92,128.89,0.6801995]
[1767351550918,0.72235571,128.92,128.89,0.6801995]
[1767351551088,3.84244881,128.92,128.89,0.6801995]
[1767351551910,0.72235571,128.92,128.89,3.8002926]
[1767351552494,0.72235571,128.92,128.9,0.6801995]
[1767351552708,3.84244881,128.93,128.9,0.6801995]
[1767351555001,0.72235571,128.92,128.9,0.6801995]
[1767351556613,3.84244881,128.92,128.89,3.1200931]
[1767351556805,3.84244881,128.92,128.89,3.8002926]
[1767351557999,3.84244881,128.92,128.89,0.6801995]
[1767351559416,0.72235571,128.92,128.89,0.6801995]
[1767351560100,3.1200931,128.92,128.87,76.46]
[1767351560417,3.1200931,128.9,128.88,0.6801995]
[1767351560922,3.84244881,128.91,128.88,0.6801995]
[1767351562522,2.72213249,128.91,128.88,0.6801995]
[1767351563116,0.72235571,128.91,128.88,1.99977678]
[1767351563416,2.72213249,128.93,128.9,0.6801995]
[1767351563797,0.72235571,128.93,128.9,0.6801995]
[1767351564004,2.72213249,128.93,128.9,0.6801995]
[1767351564202,0.72235571,128.93,128.9,0.6801995]
[1767351564423,2.72213249,128.93,128.9,0.6801995]
[1767351565825,8.47161725,128.95,128.92,0.70530136]
[1767351566023,0.71641708,128.95,128.92,1.99977678]
[1767351567722,0.71641708,128.95,128.93,1.99977678]
[1767351569029,0.71641708,128.96,128.93,2.70507814]
[1767351569221,0.71641708,128.96,128.94,0.70530136]
[1767351569615,0.71641708,128.96,128.94,2.70507814]
[1767351570130,2.71619386,128.96,128.94,0.70530136]
[1767351570310,0.71641708,128.96,128.94,0.70530136]
[1767351570633,2.71619386,128.96,128.94,0.70530136]
[1767351572021,2.71619386,128.96,128.93,0.70530136]
[1767351577537,2.71619386,128.95,128.92,0.70530136]
[1767351579220,0.71641708,128.95,128.92,0.70530136]
[1767351579422,2.71619386,128.95,128.92,0.70530136]
[1767351579635,0.71641708,128.95,128.92,0.70530136]
[1767351579844,0.71641708,128.95,128.93,0.70530136]
[1767351584036,0.71641708,128.95,128.93,2.70507814]
[1767351584244,0.71641708,128.95,128.93,0.70530136]
[1767351584426,0.71641708,128.95,128.93,2.70507814]
[1767351585924,2.71619386,128.97,128.94,0.70530136]
[1767351586143,0.71641708,128.96,128.94,0.70530136]
[1767351586559,0.71641708,128.96,128.93,2.70507814]
[1767351587325,0.71641708,128.96,128.93,0.70530136]
[1767351589748,2.71619386,128.96,128.93,0.70530136]
[1767351591650,0.71641708,128.95,128.92,0.70530136]
[1767351592439,0.71641708,128.95,128.93,0.70530136]
[1767351600957,2.69199695,128.96,128.93,0.70530136]
[1767351601262,0.69222017,128.96,128.93,0.70530136]
[1767351601465,2.69199695,128.96,128.93,0.70530136]
[1767351601632,0.69222017,128.99,128.96,0.71933536]
[1767351601956,2.69199695,128.98,128.94,1.99977678]
[1767351602139,2.69199695,128.98,128.95,0.71933536]
[1767351602140,1.99977678,128.97,128.95,0.71933536]
[1767351602860,2.69199695,128.98,128.95,0.71933536]
[1767351603454,1.99977678,128.97,128.95,0.71933536]
[1767351604660,0.69222017,128.98,128.95,0.71933536]
[1767351604852,1.99977678,128.97,128.95,0.71933536]
[1767351607567,2.69199695,128.97,128.95,0.71933536]
[1767351610063,0.69222017,128.97,128.95,0.71933536]
[1767351612455,0.69222017,128.96,128.92,0.71933536]
[1767351612658,2.69199695,128.94,128.92,0.71933536]
[1767351614051,0.69222017,128.94,128.92,0.71933536]
[1767351614783,0.69222017,128.95,128.92,0.71933536]
[1767351615076,2.69199695,128.95,128.92,0.71933536]
[1767351616246,2.69199695,128.94,128.91,0.71933536]
[1767351617173,0.69222017,128.94,128.91,0.71933536]
[1767351617358,2.69199695,128.94,128.91,0.71933536]
[1767351618276,0.69222017,128.94,128.91,0.71933536]
[1767351618458,2.69199695,128.94,128.91,0.71933536]
[1767351618893,0.69222017,128.94,128.91,0.71933536]
[1767351619049,2.69199695,128.93,128.91,0.71933536]
[1767351619357,2.69199695,128.93,128.9,14.16]
[1767351619358,2.69199695,128.93,128.9,14.87933536]
[1767351619556,2.69199695,128.93,128.9,0.71933536]
[1767351621563,1.99977678,128.92,128.9,0.71933536]
[1767351621758,2.69199695,128.93,128.9,0.71933536]
[1767351622482,3.8157867,128.93,128.9,0.71933536]
[1767351626246,3.81991151,128.93,128.9,0.71933536]
[1767351626566,3.12356653,128.93,128.9,0.71933536]
[1767351626772,3.81991151,128.92,128.89,62.95925429]
[1767351627072,3.12356653,128.91,128.89,0.65925429]
[1767351628556,0.69634498,128.9,128.88,76.46]
[1767351628762,3.12356653,128.89,128.85,7.76065964]
[1767351628961,3.81991151,128.88,128.85,7.76092213]
[1767351629289,3.81991151,128.89,128.86,0.65925429]
[1767351630384,3.81991151,128.9,128.87,0.65925429]
[1767351630570,0.69634498,128.89,128.87,0.65925429]
[1767351630978,3.81991151,128.89,128.87,0.65925429]
[1767351632581,0.69634498,128.87,128.84,32.93386011]
[1767351632890,3.81991151,128.86,128.84,18.77386011]
[1767351633074,3.12356653,128.85,128.82,0.85925429]
[1767351633380,3.12356653,128.84,128.82,0.85925429]
[1767351634559,3.12356653,128.85,128.82,0.85925429]
[1767351636585,3.12356653,128.84,128.82,0.2]
[1767351636883,3.12356653,128.84,128.82,0.85925429]
[1767351640674,3.12356653,128.84,128.82,0.2]
[1767351640880,3.152312,128.84,128.82,0.2]
[1767351642184,3.12356653,128.83,128.82,0.2]
[1767351642364,3.12356653,128.83,128.82,0.17125453]
[1767351642365,3.152312,128.83,128.82,0.17125453]
[1767351642560,3.152312,128.83,128.8,0.65925429]
[1767351642759,7.76013988,128.87,128.81,0.65925429]
[1767351642957,3.12356653,128.85,128.82,0.65925429]
[1767351643781,7.76013988,128.87,128.82,0.65925429]
[1767351644092,3.12356653,128.85,128.82,0.65925429]
[1767351648089,3.12356653,128.84,128.81,62.95925429]
[1767351648286,3.12356653,128.84,128.81,0.65925429]
[1767351648994,7.75976776,128.87,128.81,0.65925429]
[1767351649163,3.12356653,128.84,128.81,0.65925429]
[1767351652895,3.12356653,128.83,128.81,0.65925429]
[1767351653194,3.12356653,128.84,128.81,0.65925429]
[1767351653596,7.7606824,128.86,128.81,0.65925429]
[1767351653778,3.12356653,128.83,128.81,0.65925429]
[1767351653978,3.12356653,128.84,128.81,0.65925429]
[1767351654374,3.12356653,128.85,128.81,0.65925429]